lending/lending_fUSD_20260411
["ID","MTS","AMOUNT","RATE_DAILY","PERIOD"]
[420237466,1775840555281,-3469.921836,0.00010646,2]
[420237467,1775840555463,-1939.843672,0.00010646,2]
[420237468,1775840556032,-1120.322656,0.00010646,2]
[420237469,1775840556055,-206.63980289,0.00010699,2]
[420237470,1775840556065,-182.65387148,0.00010699,2]
[420237471,1775840556090,-348.05482258,0.00010699,2]
[420237472,1775840556103,-500.0,0.00010699,2]
[420237473,1775840556116,-500.0,0.00010699,2]
[420237474,1775840556138,-202.49517505,0.00010699,2]
[420237475,1775840556234,-297.50482495,0.00010699,2]
[420237476,1775840556248,-644.96283734,0.00010699,2]
[420237477,1775840556296,-500.0,0.00010699,2]
[420237478,1775840556310,-500.0,0.00010699,2]
[420237479,1775840556372,-416.25673428,0.00010699,2]
[420237480,1775840556413,-500.0,0.00010699,2]
[420237481,1775840556423,-500.0,0.00010699,2]
[420237482,1775840556439,-500.0,0.00010699,2]
[420237483,1775840556450,-500.0,0.00010699,2]
[420237484,1775840556459,-500.0,0.00010699,2]
[420237485,1775840556468,-190.81621945,0.00010699,2]
[420237486,1775840556483,-273.53056308,0.00010699,2]
[420237487,1775840556495,-500.0,0.00010699,2]
[420237488,1775840556505,-500.0,0.00010699,2]
[420237489,1775840556514,-500.0,0.00010699,2]
[420237490,1775840556527,-291.55210458,0.00010699,2]
[420237491,1775840556539,-500.0,0.00010699,2]
[420237492,1775840556549,-500.0,0.00010699,2]
[420237493,1775840556559,-150.42579832,0.00010699,2]
[420237494,1775840556645,-349.57420168,0.00010699,2]
[420237495,1775840556655,-500.0,0.00010699,2]
[420237496,1775840556665,-5680.51396232,0.000107,2]
[420237497,1775840557838,-1120.322656,0.000107,2]
[420237498,1775840558479,-10000.01,0.000107,2]
[420237499,1775840558496,-10000.01,0.000107,2]
[420237500,1775840558527,-5000.01,0.000107,2]
[420237501,1775840559785,-10000.01,0.000107,2]
[420237502,1775840560053,-5000.01,0.000107,2]
[420237503,1775840562549,-10000.01,0.000107,2]
[420237504,1775840562744,-10000.01,0.000107,2]
[420237505,1775840562863,-10000.01,0.000107,2]
[420237506,1775840563068,-10000.01,0.000107,2]
[420237507,1775840563139,-5000.01,0.000107,2]
[420237508,1775840565723,-10000.01,0.000107,2]
[420237509,1775840565954,-10000.01,0.000107,2]
[420237510,1775840566103,-5000.01,0.000107,2]
[420237511,1775840569228,-10000.01,0.00010695,2]
[420237512,1775840569292,-491.5489351,0.00010695,2]
[420237513,1775840569378,-10000.01,0.000107,2]
[420237514,1775840569466,-4016.9121298,0.000107,2]
[420237515,1775840569508,-10000.01,0.000107,2]
[420237516,1775840569637,-10000.01,0.000107,2]
[420237517,1775840569703,-10000.01,0.000107,2]
[420237518,1775840572324,-500.0,0.00010699,2]
[420237519,1775840572372,-500.0,0.00010699,2]
[420237520,1775840572433,-500.0,0.00010699,2]
[420237521,1775840572516,-500.0,0.00010699,2]
[420237522,1775840572549,-224.8839789,0.00010699,2]
[420237523,1775840572583,-50.2420422,0.00010699,2]
[420237524,1775840572611,-449.7579578,0.00010699,2]
[420237525,1775840572620,-467.4560909,0.00010699,2]
[420237526,1775840572630,-500.0,0.00010699,2]
[420237527,1775840572641,-500.0,0.00010699,2]
[420237528,1775840572650,-8082.7959513,0.000107,2]
[420237529,1775840572700,-500.0,0.00010699,2]
[420237530,1775840572710,-9500.01,0.000107,2]
[420237531,1775840573328,-449.7579578,0.00010699,2]
[420237532,1775840574672,-50.2420422,0.00010699,2]
[420237533,1775840574716,-500.0,0.00010699,2]
[420237534,1775840574761,-500.0,0.00010699,2]
[420237535,1775840574801,-500.0,0.00010699,2]
[420237536,1775840574847,-500.0,0.00010699,2]
[420237537,1775840574908,-500.0,0.00010699,2]
[420237538,1775840574963,-500.0,0.00010699,2]
[420237539,1775840575028,-500.0,0.00010699,2]
[420237540,1775840575089,-500.0,0.00010699,2]
[420237541,1775840575157,-500.0,0.00010699,2]
[420237542,1775840575199,-399.5259156,0.00010699,2]
[420237543,1775840575404,-100.4740844,0.00010699,2]
[420237544,1775840575455,-500.0,0.00010699,2]
[420237545,1775840575511,-500.0,0.00010699,2]
[420237546,1775840575567,-500.0,0.00010699,2]
[420237547,1775840575612,-500.0,0.00010699,2]
[420237548,1775840575663,-500.0,0.00010699,2]
[420237549,1775840575707,-500.0,0.00010699,2]
[420237550,1775840575775,-500.0,0.00010699,2]
[420237551,1775840575824,-500.0,0.00010699,2]
[420237552,1775840575869,-500.0,0.00010699,2]
[420237553,1775840575909,-299.0618312,0.00010699,2]
[420237554,1775840576024,-200.9381688,0.00010699,2]
[420237555,1775840576064,-500.0,0.00010699,2]
[420237556,1775840576105,-500.0,0.00010699,2]
[420237557,1775840576141,-219.37185726,0.00010699,2]
[420237558,1775840576175,-500.0,0.00010699,2]
[420237559,1775840576213,-500.0,0.00010699,2]
[420237560,1775840576253,-500.0,0.00010699,2]
[420237561,1775840576292,-500.0,0.00010699,2]
[420237562,1775840576350,-500.0,0.00010699,2]
[420237563,1775840576396,-500.0,0.00010699,2]
[420237564,1775840576441,-500.0,0.00010699,2]
[420237565,1775840576733,-500.0,0.00010699,2]
[420237566,1775840577116,-500.0,0.00010699,2]
[420237567,1775840577164,-500.0,0.00010699,2]
[420237568,1775840577206,-500.0,0.00010699,2]
[420237569,1775840577248,-500.0,0.00010699,2]
[420237570,1775840578448,-500.0,0.000107,2]
[420237571,1775840578468,-5000.01,0.000107,2]
[420237572,1775840578492,-5000.01,0.000107,2]
[420237573,1775840578528,-10000.01,0.000107,2]
[420237574,1775840578812,-10000.01,0.000107,2]
[420237575,1775840578839,-10000.01,0.000107,2]
[420237576,1775840580016,-10000.01,0.000107,2]
[420237577,1775840580046,-10000.01,0.000107,2]
[420237578,1775840580089,-10000.01,0.000107,2]
[420237579,1775840580104,-10000.01,0.000107,2]
[420237580,1775840580502,-10000.01,0.000107,2]
[420237581,1775840580536,-10000.01,0.000107,2]
[420237582,1775840580651,-5000.01,0.000107,2]
[420237583,1775840580731,-10000.01,0.000107,2]
[420237584,1775840580952,-10000.01,0.000107,2]
[420237585,1775840581144,-300.0,0.00010699,2]
[420237586,1775840581155,-4700.01,0.000107,2]
[420237587,1775840584152,-150.0,0.00010699,2]
[420237588,1775840584210,-4700.01,0.000107,2]
[420237589,1775840587168,-500.0,0.00010673,2]
[420237590,1775840587211,-4000.01,0.000107,2]
[420237591,1775840591289,-300.0,0.00010699,2]
[420237592,1775840591566,-4400.01,0.000107,2]
[420237593,1775840593230,-204.2281979,0.00010699,2]
[420237594,1775840593287,-215.39633666,0.00010699,2]
[420237595,1775840593383,-4160.76093088,0.000107,2]
[420237596,1775840596171,-5000.01,0.000107,2]
[420237597,1775840599612,-5000.01,0.000107,2]
[420237598,1775840602333,-500.0,0.00010699,2]
[420237599,1775840602374,-500.0,0.00010699,2]
[420237600,1775840602427,-500.0,0.00010699,2]
[420237601,1775840602469,-500.0,0.00010699,2]
[420237602,1775840602520,-500.0,0.00010699,2]
[420237603,1775840602589,-500.0,0.00010699,2]
[420237604,1775840602637,-500.0,0.00010699,2]
[420237605,1775840602690,-500.0,0.00010699,2]
[420237606,1775840602735,-500.0,0.00010699,2]
[420237607,1775840602779,-500.0,0.00010699,2]
[420237608,1775840602862,-500.0,0.00010699,2]
[420237609,1775840602912,-500.0,0.00010699,2]
[420237610,1775840602958,-500.0,0.00010699,2]
[420237611,1775840603012,-500.0,0.00010699,2]
[420237612,1775840603077,-500.0,0.00010699,2]
[420237613,1775840603138,-500.0,0.00010699,2]
[420237614,1775840603207,-500.0,0.00010699,2]
[420237615,1775840603279,-500.0,0.00010699,2]
[420237616,1775840603691,-500.0,0.00010699,2]
[420237617,1775840603732,-500.0,0.00010699,2]
[420237618,1775840603817,-500.0,0.00010699,2]
[420237619,1775840603906,-500.0,0.00010699,2]
[420237620,1775840603961,-500.0,0.00010699,2]
[420237621,1775840604044,-500.0,0.00010699,2]
[420237622,1775840604115,-500.0,0.00010699,2]
[420237623,1775840604167,-500.0,0.00010699,2]
[420237624,1775840604216,-500.0,0.00010699,2]
[420237625,1775840604260,-500.0,0.00010699,2]
[420237626,1775840605950,-5000.01,0.000107,2]
[420237627,1775840606194,-5000.01,0.000107,2]
[420237628,1775840606208,-5000.01,0.000107,2]
[420237629,1775840617144,-10000.01,0.000107,2]
[420237630,1775840617285,-10000.01,0.000107,2]
[420237631,1775840617451,-10000.01,0.000107,2]
[420237632,1775840617578,-10000.01,0.000107,2]
[420237633,1775840617729,-10000.01,0.000107,2]
[420237634,1775840617836,-10000.01,0.000107,2]
[420237635,1775840617981,-10000.01,0.000107,2]
[420237636,1775840618140,-10000.01,0.000107,2]
[420237637,1775840618297,-10000.01,0.000107,2]
[420237638,1775840618470,-10000.01,0.000107,2]
[420237639,1775840648397,5000.01,7.945e-05,2]
[420237640,1775840648418,1790.632826,7.945e-05,2]
[420237641,1775840687728,200.0,0.000104,2]
[420237644,1775840708121,2863.509072,7.945e-05,2]
[420237645,1775840718060,-162.0,0.00010492,2]
[420237646,1775840718107,-567.0,0.00010492,2]
[420237647,1775840721806,3542.01,0.00010468,2]
[420237648,1775840721828,523.451836,0.00010468,2]
[420237649,1775840726889,-200.0,0.00010492,2]
[420237650,1775840741626,-1200.0,0.00010521,2]
[420237651,1775840741648,-303.0,0.00010521,2]
[420237652,1775840741671,-8336.63094464,0.00010522,2]
[420237653,1775840741694,-160.36905536,0.00010589,7]
[420237654,1775840751767,-170.07094464,0.00010589,7]
[420237655,1775840751790,-660.89,0.00010592,7]
[420237656,1775840751838,-330.44,0.00010595,7]
[420237657,1775840751904,-300.0,0.00010599,2]
[420237658,1775840751948,-300.0,0.00010599,2]
[420237659,1775840751981,-300.0,0.00010599,2]
[420237660,1775840752006,-5000.0,0.00010623,2]
[420237661,1775840752030,-2938.59905536,0.00010658,2]
[420237662,1775840761649,-660.42371246,0.00010522,2]
[420237663,1775840761672,-6973.65446272,0.000106,2]
[420237664,1775840761702,-1648.12082512,0.00010658,2]
[420237665,1775840761730,-717.8009997,0.00010658,30]
[420237666,1775840768909,2462.758143,7.945e-05,2]
[420237667,1775840773090,-539.0,0.00010492,2]
[420237668,1775840773120,-660.42371244,0.00010561,2]
[420237669,1775840773148,-660.42371244,0.000106,2]
[420237670,1775840773170,-289.0,0.00010657,2]
[420237671,1775840773198,-31.58413099,0.00010658,30]
[420237672,1775840773220,-500.0,0.00010673,2]
[420237673,1775840773251,-500.64655895,0.00010673,2]
[420237674,1775840773281,-500.0,0.00010673,2]
[420237675,1775840773314,-500.0,0.00010673,2]
[420237676,1775840773343,-749.38513069,0.00010673,30]
[420237677,1775840773366,-501.51019132,0.00010673,2]
[420237678,1775840773396,-609.735,0.00010673,2]
[420237679,1775840773422,-500.0,0.00010673,2]
[420237680,1775840773457,-500.0,0.00010673,2]
[420237681,1775840773478,-150.0,0.00010698,2]
[420237682,1775840773516,-150.77743566,0.00010699,2]
[420237683,1775840773562,-311.53307654,0.00010699,2]
[420237684,1775840773620,-500.0,0.00010699,2]
[420237685,1775840773682,-500.0,0.00010699,2]
[420237686,1775840773717,-500.0,0.00010699,2]
[420237687,1775840773746,-500.0,0.00010699,2]
[420237688,1775840773782,-345.98105097,0.00010699,2]
[420237689,1775840785247,-154.01894903,0.00010699,2]
[420237690,1775840785287,-500.0,0.00010699,2]
[420237691,1775840785317,-500.0,0.00010699,2]
[420237692,1775840785351,-491.72180778,0.00010699,2]
[420237693,1775840785378,-500.0,0.00010699,2]
[420237694,1775840785414,-500.0,0.00010699,2]
[420237695,1775840785443,-500.0,0.00010699,2]
[420237696,1775840785471,-500.0,0.00010699,2]
[420237697,1775840785502,-500.0,0.00010699,2]
[420237698,1775840785541,-500.0,0.00010699,2]
[420237699,1775840785583,-500.0,0.00010699,2]
[420237700,1775840785643,-500.0,0.00010699,2]
[420237701,1775840785670,-500.0,0.00010699,2]
[420237702,1775840785712,-500.0,0.00010699,2]
[420237703,1775840785740,-500.0,0.00010699,2]
[420237704,1775840785767,-500.0,0.00010699,2]
[420237705,1775840785796,-500.0,0.00010699,2]
[420237706,1775840785832,-500.0,0.00010699,2]
[420237707,1775840785867,-500.0,0.00010699,2]
[420237708,1775840785911,-500.0,0.00010699,2]
[420237709,1775840785947,-354.25924319,0.00010699,2]
[420237710,1775840791670,-145.74075681,0.00010699,2]
[420237711,1775840791743,-204.02826723,0.00010699,2]
[420237712,1775840795447,-295.97173277,0.00010699,2]
[420237713,1775840795502,-500.0,0.00010699,2]
[420237714,1775840795585,-500.0,0.00010699,2]
[420237715,1775840795627,-499.17218078,0.00010699,2]
[420237716,1775840795663,-500.0,0.00010699,2]
[420237717,1775840795690,-500.0,0.00010699,2]
[420237718,1775840795724,-500.0,0.00010699,2]
[420237719,1775840795756,-749.38513069,0.00010699,30]
[420237720,1775840795794,-5955.47095576,0.000107,2]
[420237721,1775840846167,-300.0,0.00010699,2]
[420237722,1775840846206,-9700.0,0.000107,2]
[420237723,1775840856630,-749.38513069,0.000107,30]
[420237724,1775840856655,-1258.5697115,0.00011836,30]
[420237725,1775840856684,-1258.5697115,0.00011836,30]
[420237726,1775840856716,-1258.5697115,0.00011863,30]
[420237727,1775840856740,-1258.5697115,0.000119,30]
[420237728,1775840856778,-749.38513069,0.00012835,30]
[420237729,1775840856817,-1258.5697115,0.00013115,30]
[420237730,1775840856893,-500.0,0.000161,30]
[420237731,1775840857012,-303.458755,0.0001611,120]
[420237732,1775840857036,-1404.92242612,0.0001615,48]
[420237733,1775840973106,-150.0,0.00010599,2]
[420237734,1775840973149,-4675.513826,0.000106,2]
[420237737,1775841031703,-2000.0,0.00010517,2]
[420237738,1775841031714,-199.49296003,0.0001059,2]
[420237739,1775841031724,-320.37,0.00010593,7]
[420237740,1775841031737,-183.0,0.00010599,2]
[420237741,1775841031747,-300.0,0.00010599,2]
[420237742,1775841031759,-1200.0,0.00010599,2]
[420237743,1775841031772,-300.0,0.00010599,2]
[420237744,1775841031782,-17141.30496177,0.000106,2]
[420237748,1775841033002,-500.0,0.00010599,2]
[420237749,1775841033011,-178.17689418,0.00010599,2]
[420237750,1775841033020,-232.72641337,0.00010599,2]
[420237751,1775841033180,-267.27358663,0.00010599,2]
[420237752,1775841033190,-293.33826229,0.00010599,2]
[420237753,1775841033199,-544.29386517,0.00010599,2]
[420237754,1775841033208,-179.28312808,0.000106,2]
[420237755,1775841033220,-341.348914,0.000106,2]
[420237756,1775841033267,-512.90085166,0.000106,2]
[420237757,1775841033300,-16303.01262924,0.000106,2]
[420237758,1775841033311,-256246.00825603,0.000106,2]
[420237759,1775841033323,-21145.16557815,0.000106,2]
[420237760,1775841033334,-28989.94118905,0.000106,2]
[420237761,1775841033347,-55194.75476304,0.000106,2]
[420237762,1775841033359,-1254.41808677,0.000106,2]
[420237763,1775841033395,-1073.86801,0.000106,2]
[420237766,1775841037926,-192288.6180707,0.000106,2]
[420237768,1775841037941,-11991.61838017,0.000106,2]
[420237769,1775841037973,-592.03588445,0.000106,2]
[420237770,1775841038853,-1000.18778537,0.000106,2]
[420237771,1775841038871,-865.69,0.000106,2]
[420237772,1775841038898,-27366.92096523,0.000106,2]
[420237773,1775841038910,-19468.68671659,0.000106,2]
[420237774,1775841038942,-773.07947383,0.000106,2]
[420237775,1775841038955,-1401.9124575,0.000106,2]
[420237776,1775841038980,-469.10245822,0.000106,2]
[420237777,1775841039019,-1057.47540344,0.000106,2]
[420237778,1775841039043,-671.07308538,0.000106,2]
[420237789,1775841040141,-840.8068203,0.000106,2]
[420237811,1775841040422,-98320.71826655,0.000106,2]
[420237813,1775841040449,-42540.50800121,0.000106,2]
[420237831,1775841040870,-501.86537624,0.000106,2]
[420237834,1775841040889,-1323.12656741,0.000106,2]
[420237836,1775841040924,-14637.31840052,0.000106,2]
[420237839,1775841040971,-1259.49207803,0.000106,2]
[420237842,1775841041106,-9883.49900633,0.000106,2]
[420237900,1775841042858,-36503.70844086,0.000106,2]
[420237901,1775841043058,-11124.3139534,0.000106,2]
[420237919,1775841045696,-1093.545,0.000106,2]
[420237920,1775841045713,-5511.59999466,0.000106,2]
[420237921,1775841046290,-531.65948178,0.000106,2]
[420237922,1775841046354,-4955.84994438,0.000106,2]
[420237923,1775841046386,-15560.062563,0.000106,2]
[420237925,1775841046413,-1022.79832148,0.000106,2]
[420237927,1775841046424,-954.67114887,0.000106,2]
[420237929,1775841046450,-1248.67707798,0.000106,2]
[420237953,1775841067713,558.338994,7.945e-05,2]
[420237954,1775841144782,174.45,7.908e-05,2]
[420237955,1775841145020,174.45,9.885e-05,2]
[420237956,1775841181374,300.0,0.00010491,2]
[420237957,1775841219160,302.0,0.00010492,2]
[420237958,1775841252873,6028.012863,9.88e-05,2]
[420237959,1775841260400,-4667.377174,9.88e-05,2]
[420237960,1775841260552,-5000.01,9.88e-05,2]
[420237961,1775841263095,-5000.01,9.88e-05,2]
[420237962,1775841263272,-5000.01,9.88e-05,2]
[420237963,1775841263298,-3324.569963,9.88e-05,2]
[420237964,1775841311705,709.0,0.00010482,2]
[420237965,1775841311742,162.0,0.00010482,2]
[420237966,1775841317815,200.0,0.000101,2]
[420237967,1775841325175,564.66,9.919e-05,2]
[420237968,1775841334016,-410.6678,0.000105,2]
[420237969,1775841334043,-302.0,0.000105,2]
[420237970,1775841334075,-709.0,0.00010518,3]
[420237971,1775841334104,-1200.0,0.00010598,2]
[420237972,1775841334135,-300.0,0.00010598,2]
[420237973,1775841334178,-150.0,0.00010598,2]
[420237974,1775841334219,-500.0,0.00010599,2]
[420237975,1775841334263,-313.53606452,0.00010599,2]
[420237976,1775841334312,-500.0,0.00010599,2]
[420237977,1775841334342,-500.0,0.00010599,2]
[420237978,1775841334376,-500.0,0.00010599,2]
[420237979,1775841334425,-572.22858223,0.00010599,2]
[420237980,1775841334505,-500.0,0.00010599,2]
[420237981,1775841334598,-500.0,0.00010599,2]
[420237982,1775841334635,-182.33872237,0.00010599,2]
[420237983,1775841334680,-500.0,0.00010599,2]
[420237984,1775841334745,-500.0,0.00010599,2]
[420237985,1775841334799,-500.0,0.00010599,2]
[420237986,1775841334836,-500.0,0.00010599,2]
[420237987,1775841334868,-500.0,0.00010599,2]
[420237988,1775841334904,-500.0,0.00010599,2]
[420237989,1775841334961,-500.0,0.00010599,2]
[420237990,1775841335013,-500.0,0.00010599,2]
[420237991,1775841335043,-500.0,0.00010599,2]
[420237992,1775841335080,-500.0,0.00010599,2]
[420237993,1775841335111,-500.0,0.00010599,2]
[420237994,1775841335224,-500.0,0.00010599,2]
[420237995,1775841335283,-500.0,0.00010599,2]
[420237996,1775841335340,-500.0,0.00010599,2]
[420237997,1775841335378,-500.0,0.00010599,2]
[420237998,1775841335440,-500.0,0.00010599,2]
[420237999,1775841335495,-500.0,0.00010599,2]
[420238000,1775841335535,-500.0,0.00010599,2]
[420238001,1775841335563,-500.0,0.00010599,2]
[420238002,1775841335609,-500.0,0.00010599,2]
[420238003,1775841335633,-343.45431694,0.00010599,2]
[420238004,1775841335665,-500.0,0.00010599,2]
[420238005,1775841335697,-500.0,0.00010599,2]
[420238006,1775841335733,-500.0,0.00010599,2]
[420238007,1775841335770,-500.0,0.00010599,2]
[420238008,1775841335806,-500.0,0.00010599,2]
[420238009,1775841335845,-500.0,0.00010599,2]
[420238010,1775841335897,-500.0,0.00010599,2]
[420238011,1775841335975,-5115.23835907,0.00010599,30]
[420238012,1775841336016,-5000.0,0.00010599,2]
[420238013,1775841336060,-250.0,0.00010599,2]
[420238014,1775841336093,-197.05895145,0.00010599,2]
[420238015,1775841336125,-173.23,0.00010599,2]
[420238016,1775841336180,-309.36069155,0.000106,2]
[420238017,1775841336206,-2436.63171256,0.000106,2]
[420238018,1775841336235,-4289.57922806,0.000106,2]
[420238019,1775841336266,-103439.67557125,0.000106,2]
[420238020,1775841558070,3278.05,9.988e-05,2]
[420238021,1775841603267,685.71145301,0.00010165,2]
[420238022,1775841605469,162.0,0.0001049,2]
[420238023,1775841609371,309.58854699,0.0001049,2]
[420238024,1775841609403,351.41145301,0.0001049,2]
[420238025,1775841667218,156.0,0.0001049,2]
[420238026,1775841679258,486.81,4.969e-05,2]
[420238027,1775841679498,486.81,5.231e-05,2]
[420238028,1775841679777,486.81,5.492e-05,2]
[420238029,1775841679989,486.81,5.754e-05,2]
[420238030,1775841680764,486.81,6.015e-05,2]
[420238031,1775841680994,486.81,6.277e-05,2]
[420238032,1775841681196,486.81,6.538e-05,2]
[420238033,1775841681406,486.81,6.8e-05,2]
[420238034,1775841681838,486.81,7.061e-05,2]
[420238035,1775841682027,267.30854699,7.323e-05,2]
[420238036,1775841682067,219.50145301,7.323e-05,2]
[420238037,1775841682252,486.81,7.584e-05,2]
[420238038,1775841682448,486.81,7.846e-05,2]
[420238039,1775841682696,486.81,8.107e-05,2]
[420238040,1775841682911,486.81,8.369e-05,2]
[420238041,1775841683136,486.81,8.63e-05,2]
[420238042,1775841683386,486.81,8.892e-05,2]
[420238043,1775841683597,486.81,9.154e-05,2]
[420238044,1775841683819,486.81,9.415e-05,2]
[420238045,1775841684077,486.81,9.677e-05,2]
[420238046,1775841684293,399.21854699,9.938e-05,2]
[420238047,1775841684322,87.59145301,9.938e-05,2]
[420238048,1775841689323,3646.291,0.00010388,2]
[420238049,1775841689432,173.458,0.00010388,2]
[420238050,1775841729579,854.0,0.0001049,2]
[420238051,1775841739838,238.66954699,0.000104,5]
[420238052,1775841739871,1487.33045301,0.000104,5]
[420238053,1775841755844,-300.0,0.00010499,2]
[420238054,1775841755895,-700.0,0.000105,2]
[420238055,1775841757375,-1000.0,0.000105,2]
[420238056,1775841757701,-1000.0,0.000105,2]
[420238057,1775841758066,-1000.0,0.000105,2]
[420238058,1775841758469,-1000.0,0.000105,2]
[420238059,1775841758752,-1000.0,0.000105,2]
[420238060,1775841759049,-1000.0,0.000105,2]
[420238061,1775841759533,-1000.0,0.000105,2]
[420238062,1775841759904,-1000.0,0.000105,2]
[420238063,1775841760303,-1000.0,0.000105,2]
[420238064,1775841760607,-601.49,0.000105,2]
[420238065,1775841760652,-302.0,0.000105,2]
[420238066,1775841760689,-96.51,0.00010598,2]
[420238067,1775841760984,-1000.0,0.00010598,2]
[420238068,1775841761342,-103.49,0.00010598,2]
[420238069,1775841761378,-300.0,0.00010598,2]
[420238070,1775841761413,-150.0,0.00010598,2]
[420238071,1775841761453,-446.51,0.00010599,2]
[420238072,1775841761675,-1000.0,0.00010599,2]
[420238073,1775841762020,-1000.0,0.00010599,2]
[420238074,1775841762398,-1000.0,0.00010599,2]
[420238075,1775841762728,-1000.0,0.00010599,2]
[420238076,1775841763075,-1000.0,0.00010599,2]
[420238077,1775841763468,-1000.0,0.00010599,2]
[420238078,1775841763811,-1000.0,0.00010599,2]
[420238079,1775841764160,-1000.0,0.00010599,2]
[420238080,1775841764511,-1000.0,0.00010599,2]
[420238081,1775841764853,-1000.0,0.00010599,2]
[420238082,1775841766310,-1000.0,0.00010599,2]
[420238083,1775841766379,-1000.0,0.00010599,2]
[420238084,1775841766546,-1000.0,0.00010599,2]
[420238085,1775841766607,-1000.0,0.00010599,2]
[420238086,1775841766652,-1000.0,0.00010599,2]
[420238087,1775841767068,-1000.0,0.00010599,2]
[420238088,1775841767333,-1000.0,0.00010599,2]
[420238089,1775841767706,-495.5223029,0.00010599,2]
[420238090,1775841767762,-231.00570562,0.00010599,2]
[420238091,1775841767801,-273.47199148,0.00010599,2]
[420238092,1775841768021,-226.52800852,0.00010599,2]
[420238093,1775841768051,-500.0,0.00010599,2]
[420238094,1775841768081,-273.47199148,0.00010599,2]
[420238095,1775841768550,-83.75086674,0.00010599,2]
[420238096,1775841768592,-500.0,0.00010599,2]
[420238097,1775841768653,-416.24913326,0.00010599,2]
[420238098,1775841768814,-83.75086674,0.00010599,2]
[420238099,1775841768867,-500.0,0.00010599,2]
[420238100,1775841768906,-205.3367836,0.00010599,2]
[420238101,1775841768950,-210.91234966,0.00010599,2]
[420238102,1775841769216,-17.83987487,0.00010599,2]
[420238103,1775841769262,-150.0,0.00010599,2]
[420238104,1775841769307,-165.92870024,0.00010599,2]
[420238105,1775841769357,-432.95047417,0.00010599,2]
[420238106,1775841769396,-233.28095072,0.00010599,2]
[420238107,1775841769541,-266.71904928,0.00010599,2]
[420238108,1775841769580,-500.0,0.00010599,2]
[420238109,1775841769624,-233.28095072,0.00010599,2]
[420238110,1775841769940,-266.71904928,0.00010599,2]
[420238111,1775841769983,-200.60761434,0.00010599,2]
[420238112,1775841770025,-500.0,0.00010599,2]
[420238113,1775841770076,-32.67333638,0.00010599,2]
[420238114,1775841770318,-467.32666362,0.00010599,2]
[420238115,1775841770379,-500.0,0.00010599,2]
[420238116,1775841770454,-32.67333638,0.00010599,2]
[420238117,1775841770766,-467.32666362,0.00010599,2]
[420238118,1775841770798,-500.0,0.00010599,2]
[420238119,1775841770829,-32.67333638,0.00010599,2]
[420238120,1775841771194,-259.08123205,0.00010599,2]
[420238121,1775841771232,-500.0,0.00010599,2]
[420238122,1775841771271,-240.91876795,0.00010599,2]
[420238123,1775841771699,-259.08123205,0.00010599,2]
[420238124,1775841771734,-445.66551679,0.00010599,2]
[420238125,1775841771776,-295.25325116,0.00010599,2]
[420238126,1775841772037,-204.74674884,0.00010599,2]
[420238127,1775841772070,-795.25325116,0.00010599,2]
[420238128,1775841772414,-1000.0,0.00010599,2]
[420238129,1775841773053,-1000.0,0.00010599,2]
[420238130,1775841773349,-1000.0,0.00010599,2]
[420238131,1775841773853,-1000.0,0.00010599,2]